bitfinex/quotes_SOLUSD_20241029
["timestamp","ask_amount","ask_price","bid_price","bid_amount"]
[1730168734122,55.52202251,181.42,181.38,0.1]
[1730168734324,55.52202251,181.45,181.39,0.1]
[1730168734519,55.52202251,181.44,181.39,0.1]
[1730168734738,8.6765,181.48,181.35,10.39311331]
[1730168734739,55.52202251,181.46,181.4,0.1]
[1730168735039,55.52202251,181.46,181.35,10.39311331]
[1730168735040,64.19852251,181.48,181.42,0.1]
[1730168735249,55.52202251,181.52,181.45,0.1]
[1730168735423,64.38212251,181.55,181.49,0.1]
[1730168735626,55.52202251,181.54,181.49,0.1]
[1730168735825,55.52202251,181.5,181.46,2.34104425]
[1730168736122,55.52202251,181.5,181.46,0.1]
[1730168736451,55.52202251,181.53,181.48,0.1]
[1730168736629,55.52202251,181.54,181.48,0.1]
[1730168736955,55.52202251,181.6,181.54,0.1]
[1730168737517,55.52202251,181.56,181.52,0.1]
[1730168737722,55.52202251,181.57,181.52,0.1]
[1730168738027,55.52202251,181.54,181.51,0.1]
[1730168738224,55.52202251,181.55,181.5,0.1]
[1730168738520,55.52202251,181.56,181.51,0.1]
[1730168738938,55.52202251,181.54,181.49,6.500675]
[1730168739439,55.52202251,181.54,181.5,0.1]
[1730168739858,55.52202251,181.55,181.5,0.1]
[1730168740339,55.52202251,181.56,181.52,0.1]
[1730168740846,55.52202251,181.67,181.61,0.1]
[1730168741028,55.52202251,181.66,181.6,0.1]
[1730168741224,55.52202251,181.66,181.61,0.1]
[1730168741832,55.52202251,181.65,181.59,0.1]
[1730168742039,0.1,181.7,181.56,2.43250232]
[1730168742238,55.52202251,181.59,181.57,6.400675]
[1730168742438,55.52202251,181.6,181.57,6.400675]
[1730168743057,55.52202251,181.61,181.57,6.400675]
[1730168743350,55.52202251,181.6,181.57,6.400675]
[1730168744024,55.52202251,181.62,181.58,8.04978108]
[1730168744229,39.58176756,181.61,181.58,8.04978108]
[1730168744432,20.1135,181.66,181.57,6.500675]
[1730168744433,55.52202251,181.59,181.57,6.400675]
[1730168744728,55.52202251,181.62,181.57,6.500675]
[1730168744928,55.52202251,181.64,181.6,0.1]
[1730168745132,55.52202251,181.65,181.6,0.1]
[1730168745342,55.52202251,181.64,181.6,0.1]
[1730168745741,55.52202251,181.62,181.59,0.1]
[1730168746230,55.52202251,181.69,181.66,0.1]
[1730168746431,21.9796,181.72,181.62,0.1]
[1730168746432,55.52202251,181.68,181.62,0.1]
[1730168746735,55.52202251,181.66,181.62,6.500675]
[1730168747147,22.0796,181.72,181.65,0.1]
[1730168747148,55.52202251,181.68,181.65,0.1]
[1730168747351,55.52202251,181.67,181.62,6.500675]
[1730168747652,55.52202251,181.68,181.65,0.1]
[1730168748033,55.52202251,181.68,181.63,6.500675]
[1730168748354,55.52202251,181.68,181.64,0.1]
[1730168748554,20.9247,181.79,181.71,0.1]
[1730168748732,55.52202251,181.72,181.69,0.1]
[1730168749159,55.52202251,181.7,181.68,0.1]
[1730168749453,55.52202251,181.69,181.68,0.1]
[1730168749655,55.52202251,181.69,181.67,0.1]
[1730168749850,55.52202251,181.7,181.67,0.1]
[1730168750153,55.52202251,181.71,181.68,0.1]
[1730168750345,55.52202251,181.7,181.68,0.1]
[1730168750650,55.52202251,181.71,181.68,0.1]
[1730168751247,55.52202251,181.7,181.68,0.1]
[1730168751447,55.52202251,181.69,181.66,0.1]
[1730168751658,55.52202251,181.68,181.66,0.1]
[1730168751838,55.52202251,181.69,181.67,0.1]
[1730168752038,55.52202251,181.68,181.65,0.1]
[1730168752346,55.52202251,181.66,181.65,0.1]
[1730168752746,55.52202251,181.66,181.64,6.500675]
[1730168752937,55.52202251,181.69,181.65,0.1]
[1730168753132,55.52202251,181.68,181.65,0.1]
[1730168753332,55.52202251,181.74,181.71,0.1]
[1730168753536,55.52202251,181.77,181.75,0.1]
[1730168753860,31.6307705,181.76,181.75,0.1]
[1730168754060,31.6307705,181.76,181.72,0.1]
[1730168754257,55.52202251,181.73,181.68,2.32522064]
[1730168754552,55.52202251,181.71,181.69,0.1]
[1730168754743,55.52202251,181.72,181.69,0.1]
[1730168755061,55.52202251,181.71,181.69,0.1]
[1730168755636,55.52202251,181.72,181.69,0.1]
[1730168755945,0.1,181.83,181.76,0.1]
[1730168756145,55.52202251,181.77,181.74,0.1]
[1730168756350,55.52202251,181.76,181.75,0.1]
[1730168757139,55.52202251,181.76,181.73,0.1]
[1730168757459,55.52202251,181.75,181.74,0.1]
[1730168757661,0.3,181.84,181.74,0.1]
[1730168757662,55.52202251,181.76,181.74,0.1]
[1730168757845,55.52202251,181.76,181.75,0.1]
[1730168758043,55.52202251,181.76,181.74,0.1]
[1730168758252,55.52202251,181.75,181.74,0.1]
[1730168758448,55.52202251,181.75,181.7,14.45045608]
[1730168758656,8.121,181.77,181.7,6.400675]
[1730168758964,8.121,181.77,181.66,0.1]
[1730168759158,55.52202251,181.71,181.67,0.1]
[1730168759363,55.52202251,181.69,181.67,0.1]
[1730168759867,55.52202251,181.69,181.66,0.1]
[1730168760050,55.52202251,181.69,181.67,0.1]
[1730168760259,55.52202251,181.69,181.68,0.1]
[1730168760754,55.52202251,181.74,181.71,0.1]
[1730168760945,8.121,181.77,181.72,0.1]
[1730168761367,55.52202251,181.73,181.72,0.1]
[1730168761860,55.52202251,181.73,181.7,0.1]
[1730168762066,55.52202251,181.71,181.68,0.1]
[1730168762271,55.52202251,181.71,181.65,6.400675]
[1730168762272,55.52202251,181.69,181.67,0.1]
[1730168762773,55.52202251,181.68,181.67,0.1]
[1730168763142,55.52202251,181.69,181.67,0.1]
[1730168763343,55.52202251,181.68,181.65,6.400675]
[1730168763558,55.52202251,181.66,181.65,6.400675]
[1730168763750,55.52202251,181.66,181.61,2.42259712]
[1730168764068,55.52202251,181.62,181.6,6.500675]
[1730168764276,55.52202251,181.61,181.58,0.1]
[1730168764449,55.52202251,181.59,181.58,0.1]
[1730168764650,55.52202251,181.62,181.6,0.1]
[1730168765044,55.52202251,181.65,181.62,0.1]
[1730168765262,55.52202251,181.65,181.63,0.1]
[1730168765970,55.52202251,181.66,181.63,0.1]
[1730168766264,55.52202251,181.69,181.66,0.1]
[1730168766468,55.52202251,181.7,181.69,0.1]
[1730168766667,55.52202251,181.72,181.71,0.1]
[1730168767183,55.52202251,181.72,181.69,0.1]
[1730168767462,55.52202251,181.73,181.71,0.1]
[1730168767688,8.121,181.77,181.67,55.52202251]
[1730168767689,55.52202251,181.75,181.73,0.1]
[1730168767968,76.49172251,181.8,181.75,0.1]
[1730168768273,76.49172251,181.8,181.74,0.1]
[1730168768564,55.52202251,181.75,181.74,0.1]
[1730168769669,55.52202251,181.75,181.73,0.1]
[1730168769964,76.49172251,181.8,181.74,0.1]
[1730168770168,76.59172251,181.8,181.74,0.1]
[1730168770666,21.0697,181.8,181.74,0.1]
[1730168770845,20.9697,181.8,181.74,0.1]
[1730168771045,55.52202251,181.75,181.72,0.1]
[1730168771266,55.52202251,181.74,181.72,0.1]
[1730168771672,55.52202251,181.74,181.73,0.1]
[1730168772167,55.52202251,181.74,181.72,0.1]
[1730168772376,8.2146,181.82,181.69,2.32036599]
[1730168772377,55.52202251,181.79,181.75,0.1]
[1730168772581,34.00419294,181.81,181.8,0.1]
[1730168772753,34.00419294,181.81,181.78,0.1]
[1730168772947,0.3,181.84,181.8,0.1]
[1730168773167,0.3,181.84,181.77,0.1]
[1730168773673,34.00419294,181.78,181.77,0.1]
[1730168775474,34.00419294,181.78,181.75,0.1]
[1730168775651,34.00419294,181.76,181.75,0.1]
[1730168775847,34.00419294,181.76,181.73,0.1]
[1730168776150,34.00419294,181.75,181.73,0.1]
[1730168776351,34.00419294,181.8,181.76,0.1]
[1730168776550,20.3,181.84,181.76,0.1]
[1730168776754,20.3,181.84,181.77,0.1]
[1730168776971,0.3,181.84,181.81,0.1]
[1730168777147,0.3,181.84,181.79,0.1]
[1730168777346,0.3,181.84,181.75,0.1]
[1730168777576,0.4,181.84,181.77,0.1]
[1730168777782,0.4,181.84,181.76,0.1]
[1730168777950,0.4,181.84,181.77,0.1]
[1730168778156,34.00419294,181.78,181.77,0.1]
[1730168778849,34.00419294,181.78,181.74,0.1]
[1730168779045,34.00419294,181.75,181.71,0.1]
[1730168779274,34.00419294,181.72,181.71,25.45]
[1730168779575,34.00419294,181.72,181.66,0.1]
[1730168779765,34.00419294,181.67,181.65,6.14674197]
[1730168779952,34.00419294,181.66,181.65,6.04674197]
[1730168780157,34.00419294,181.66,181.65,0.1]
[1730168781255,34.00419294,181.67,181.62,30.0]
[1730168781455,34.00419294,181.65,181.62,30.0]
[1730168781761,34.00419294,181.64,181.62,30.0]
[1730168782069,34.00419294,181.63,181.62,30.0]
[1730168782452,55.36606644,181.63,181.6,8.04978108]
[1730168782865,55.36606644,181.64,181.6,8.04978108]
[1730168783394,55.36606644,181.63,181.6,8.04978108]
[1730168783547,55.36606644,181.65,181.6,8.04978108]
[1730168783753,55.36606644,181.67,181.61,85.36606644]
[1730168784056,55.36606644,181.69,181.63,55.36606644]
[1730168784257,55.36606644,181.69,181.64,8.04978108]
[1730168784586,55.36606644,181.66,181.64,8.04978108]
[1730168784754,55.36606644,181.68,181.64,8.04978108]
[1730168785081,55.36606644,181.65,181.61,30.0]
[1730168785255,55.36606644,181.66,181.61,30.0]
[1730168785771,55.36606644,181.65,181.61,30.0]
[1730168786078,55.36606644,181.68,181.62,55.36606644]
[1730168786454,55.36606644,181.67,181.61,93.41584752]
[1730168786753,55.36606644,181.66,181.61,38.04978108]
[1730168786969,55.36606644,181.68,181.62,55.36606644]
[1730168787277,55.36606644,181.7,181.64,55.36606644]
[1730168787482,55.36606644,181.71,181.65,55.36606644]
[1730168787774,55.36606644,181.7,181.64,55.36606644]
[1730168787954,55.36606644,181.68,181.63,8.04978108]
[1730168788866,55.36606644,181.7,181.64,55.36606644]
[1730168789271,8.8119,181.76,181.65,55.36606644]
[1730168789460,55.36606644,181.73,181.67,55.36606644]
[1730168789667,55.36606644,181.72,181.66,55.36606644]
[1730168790055,55.36606644,181.71,181.65,63.41584752]
[1730168790254,55.36606644,181.68,181.63,3.08152791]
[1730168790481,55.36606644,181.7,181.64,55.36606644]
[1730168790860,55.36606644,181.69,181.63,55.36606644]
[1730168791062,55.36606644,181.7,181.64,55.36606644]
[1730168791262,55.36606644,181.7,181.65,2.28130653]
[1730168792555,55.36606644,181.69,181.65,2.28130653]
[1730168792755,55.36606644,181.69,181.64,2.28130653]
[1730168793481,55.36606644,181.69,181.65,8.04978108]
[1730168794570,55.36606644,181.68,181.64,2.28130653]
[1730168794880,55.36606644,181.71,181.66,55.36606644]
[1730168795090,55.36606644,181.7,181.67,2.28130653]
[1730168795385,55.36606644,181.7,181.65,8.04978108]
[1730168795571,55.36606644,181.68,181.65,10.34877307]
[1730168795755,55.36606644,181.66,181.64,2.29899199]
[1730168795955,55.36606644,181.65,181.61,3.46599923]
[1730168796178,55.36606644,181.62,181.55,8.15934698]
[1730168796415,55.36606644,181.58,181.55,11.3471763]
[1730168796588,55.36606644,181.61,181.56,2.29899199]
[1730168797083,55.36606644,181.61,181.55,64.41425075]
[1730168797293,55.36606644,181.59,181.55,9.04818431]
[1730168797894,55.36606644,181.59,181.56,2.30232579]
[1730168798259,55.36606644,181.58,181.56,2.30232579]
[1730168798472,55.36606644,181.58,181.52,57.66839223]
[1730168798672,55.36606644,181.58,181.53,2.30232579]
[1730168798869,55.36606644,181.58,181.54,2.30232579]
[1730168799071,55.36606644,181.57,181.53,2.30232579]
[1730168799275,8.8282,181.66,181.54,55.36606644]
[1730168799276,55.36606644,181.6,181.54,55.36606644]
[1730168799493,55.36606644,181.58,181.55,2.30232579]
[1730168799664,55.36606644,181.59,181.53,57.66839223]
[1730168799988,55.36606644,181.59,181.51,5.86035499]
[1730168799989,55.36606644,181.57,181.54,2.30232579]
[1730168800162,55.36606644,181.56,181.54,2.30232579]
[1730168800357,55.36606644,181.55,181.51,9.05225531]
[1730168800567,55.36606644,181.54,181.52,2.30661719]
[1730168800765,55.36606644,181.54,181.53,2.30661719]
[1730168800985,110.73213288,181.54,181.52,2.30661719]
[1730168801159,110.73213288,181.53,181.48,2.30661719]
[1730168801363,55.36606644,181.49,181.48,2.30661719]
[1730168801680,55.36606644,181.49,181.41,55.36606644]
[1730168801681,55.36606644,181.49,181.44,3.05008653]
[1730168801885,55.36606644,181.5,181.45,2.30661719]
[1730168802184,55.36606644,181.49,181.46,2.30661719]
[1730168802396,20.0,181.54,181.46,2.30661719]
[1730168802397,55.36606644,181.52,181.46,55.36606644]
[1730168802687,55.36606644,181.52,181.4,4.32579495]
[1730168802688,20.1,181.52,181.47,2.30661719]
[1730168802883,0.1,181.48,181.41,2.30661719]
[1730168803057,0.1,181.48,181.36,5.36232888]
[1730168803262,34.11072518,181.38,181.37,2.30661719]
[1730168803469,34.11072518,181.38,181.35,2.30661719]
[1730168803666,34.11072518,181.38,181.36,2.30661719]
[1730168803970,34.11072518,181.37,181.36,2.30661719]
[1730168804278,34.11072518,181.37,181.34,0.6139017]
[1730168804279,68.22145036,181.37,181.34,0.6139017]
[1730168804478,68.22145036,181.35,181.34,0.6139017]
[1730168804875,34.11072518,181.35,181.34,0.6139017]
[1730168805386,8.8233,181.43,181.34,0.6139017]
[1730168805387,34.11072518,181.36,181.34,0.6139017]
[1730168805567,34.11072518,181.37,181.34,0.6139017]
[1730168805764,34.11072518,181.36,181.34,0.6139017]
[1730168805971,34.11072518,181.35,181.34,0.6139017]
[1730168807084,34.11072518,181.36,181.34,0.6139017]
[1730168807388,34.11072518,181.35,181.34,0.6139017]
[1730168807761,34.11072518,181.39,181.34,0.6139017]
[1730168807987,34.11072518,181.38,181.34,2.92051889]
[1730168808359,34.11072518,181.38,181.34,0.6139017]
[1730168808569,34.11072518,181.37,181.34,0.6139017]
[1730168808773,34.11072518,181.39,181.34,0.6139017]
[1730168808974,34.11072518,181.41,181.35,34.11072518]
[1730168809285,34.11072518,181.38,181.36,2.30661719]
[1730168809484,34.11072518,181.38,181.34,2.92051889]
[1730168809667,34.11072518,181.39,181.34,34.72462688]
[1730168809864,34.11072518,181.39,181.35,2.30661719]
[1730168810797,34.11072518,181.42,181.36,34.11072518]
[1730168810966,34.11072518,181.42,181.37,2.30661719]
[1730168811166,34.11072518,181.4,181.35,6.44933663]
[1730168811493,23.0658,181.45,181.35,2.27262296]
[1730168811494,34.11072518,181.38,181.35,2.27262296]
[1730168811665,34.11072518,181.39,181.34,0.6139017]
[1730168811868,34.11072518,181.4,181.34,36.99724984]
[1730168812186,34.11072518,181.39,181.35,2.27262296]
[1730168812490,34.11072518,181.4,181.34,36.99724984]
[1730168812787,34.11072518,181.41,181.36,34.11072518]
[1730168813094,65.30822518,181.53,181.39,70.1]
[1730168813268,34.11072518,181.46,181.4,36.38334814]
[1730168813468,31.1975,181.53,181.43,34.11072518]
[1730168813680,34.11072518,181.49,181.44,2.27262296]
[1730168813989,34.11072518,181.52,181.46,34.11072518]
[1730168814187,34.11072518,181.5,181.44,36.37687639]
[1730168814370,34.11072518,181.5,181.47,2.26615121]
[1730168814691,34.11072518,181.52,181.46,34.11072518]
[1730168814873,34.11072518,181.51,181.47,2.26615121]
[1730168815070,34.11072518,181.53,181.47,34.11072518]
[1730168815383,34.11072518,181.52,181.48,2.26615121]
[1730168815696,34.11072518,181.51,181.47,2.26615121]
[1730168815881,0.1,181.57,181.45,2.26615121]
[1730168816186,34.11072518,181.48,181.43,2.26615121]
[1730168816401,34.11072518,181.49,181.43,36.37687639]
[1730168816574,34.11072518,181.49,181.44,2.26615121]
[1730168816768,8.6392,181.58,181.46,34.11072518]
[1730168816769,34.11072518,181.52,181.46,34.11072518]
[1730168816990,34.11072518,181.54,181.47,36.37687639]
[1730168817192,34.11072518,181.55,181.48,36.37687639]
[1730168817394,34.11072518,181.54,181.49,2.26615121]
[1730168817781,34.11072518,181.5,181.49,2.26615121]
[1730168818092,34.11072518,181.52,181.46,6.44933663]
[1730168818275,34.11072518,181.54,181.48,34.11072518]
[1730168818479,34.11072518,181.55,181.49,36.37687639]
[1730168818701,34.11072518,181.55,181.5,2.26615121]
[1730168818874,34.11072518,181.55,181.49,2.26476102]
[1730168819071,34.11072518,181.55,181.49,36.3754862]
[1730168819272,34.11072518,181.55,181.5,2.26476102]
[1730168819874,34.11072518,181.53,181.5,2.26476102]
[1730168820078,34.11072518,181.52,181.48,2.26476102]
[1730168820290,34.11072518,181.54,181.48,34.11072518]
[1730168820497,34.11072518,181.53,181.49,2.26476102]
[1730168820789,34.11072518,181.53,181.48,2.26476102]
[1730168820998,34.11072518,181.53,181.46,34.11072518]
[1730168820999,34.11072518,181.53,181.47,2.26476102]
[1730168821494,34.11072518,181.56,181.5,34.11072518]
[1730168821698,34.11072518,181.62,181.52,34.11072518]
[1730168821699,34.11072518,181.58,181.52,34.11072518]
[1730168821875,34.11072518,181.56,181.5,46.0954168]
[1730168822078,34.11072518,181.55,181.51,2.26390191]
[1730168822294,34.11072518,181.53,181.5,7.7992569]
[1730168822496,34.11072518,181.53,181.5,5.53535499]
[1730168822800,34.21072518,181.62,181.5,5.53535499]
[1730168822801,34.11072518,181.55,181.5,5.53535499]
[1730168823095,34.11072518,181.58,181.52,34.11072518]
[1730168823287,34.11072518,181.59,181.53,36.37462709]
[1730168823592,34.11072518,181.62,181.54,2.26390191]
[1730168823794,34.11072518,181.62,181.51,34.11072518]
[1730168824004,9.2226,181.64,181.52,2.26378198]
[1730168824183,9.2226,181.64,181.52,6.44933663]
[1730168824875,9.3226,181.64,181.51,7.79913697]
[1730168825073,34.11072518,181.53,181.51,5.53535499]
[1730168825574,34.11072518,181.52,181.51,5.53535499]
[1730168825768,34.11072518,181.54,181.47,39.64608017]
[1730168825970,34.11072518,181.55,181.49,34.11072518]
[1730168826191,34.11072518,181.55,181.5,2.26378198]
[1730168827093,34.11072518,181.56,181.5,36.37450716]
[1730168827311,34.11072518,181.55,181.51,2.26378198]
[1730168827619,34.11072518,181.57,181.51,40.56006181]
[1730168827914,34.11072518,181.55,181.52,2.26378198]
[1730168828078,34.11072518,181.62,181.5,5.53535499]
[1730168828079,34.11072518,181.53,181.5,5.53535499]
[1730168828276,34.11072518,181.52,181.5,5.53535499]
[1730168828477,34.11072518,181.53,181.5,5.53535499]
[1730168828783,34.11072518,181.52,181.5,5.53535499]
[1730168828995,34.11072518,181.51,181.5,5.53535499]
[1730168829379,34.11072518,181.52,181.46,3.10261275]
[1730168829585,34.11072518,181.52,181.46,2.23137431]
[1730168829787,34.11072518,181.5,181.46,2.23137431]
[1730168829981,34.11072518,181.49,181.45,7.7667293]
[1730168830187,34.11072518,181.49,181.45,5.53535499]
[1730168830502,34.11072518,181.48,181.45,8.58309404]
[1730168831002,34.11072518,181.49,181.45,8.58309404]
[1730168831205,34.11072518,181.48,181.45,8.58309404]
[1730168831500,34.11072518,181.47,181.45,8.58309404]
[1730168831696,34.11072518,181.46,181.45,5.53535499]
[1730168832280,34.11072518,181.46,181.4,9.13952223]
[1730168832488,34.11072518,181.44,181.41,5.53535499]
[1730168833290,34.11072518,181.43,181.41,5.53535499]
[1730168833890,34.11072518,181.44,181.41,5.53535499]
[1730168834089,34.11072518,181.45,181.41,5.53535499]
[1730168834593,34.11072518,181.44,181.41,5.53535499]
[1730168834804,34.11072518,181.45,181.41,5.53535499]
[1730168834990,34.11072518,181.46,181.41,5.53535499]
[1730168835189,34.11072518,181.45,181.41,7.76895556]
[1730168835394,34.11072518,181.45,181.4,5.35851735]
[1730168837013,34.11072518,181.46,181.41,34.11072518]
[1730168837216,34.11072518,181.46,181.42,2.2358262]
[1730168837504,42.65612518,181.53,181.42,2.2358262]
[1730168837505,34.11072518,181.48,181.42,34.11072518]
[1730168837709,34.11072518,181.48,181.43,2.2358262]
[1730168837913,34.11072518,181.47,181.43,2.2358262]
[1730168838091,34.11072518,181.47,181.42,2.2358262]
[1730168838499,34.11072518,181.48,181.42,36.34655138]
[1730168838788,34.11072518,181.5,181.44,34.11072518]
[1730168839011,34.11072518,181.49,181.45,2.2358262]
[1730168839309,34.11072518,181.49,181.44,2.2358262]
[1730168839493,34.11072518,181.46,181.44,2.2358262]
[1730168839700,34.11072518,181.45,181.42,2.2358262]
[1730168839887,42.75612518,181.53,181.42,2.2358262]
[1730168839888,34.11072518,181.48,181.42,34.11072518]
[1730168840091,34.11072518,181.49,181.43,36.34655138]
[1730168840302,34.11072518,181.51,181.45,34.11072518]
[1730168840614,34.11072518,181.5,181.44,34.11072518]
[1730168840913,34.11072518,181.48,181.45,2.23929333]
[1730168841112,34.11072518,181.49,181.43,36.35085408]
[1730168841441,34.11072518,181.49,181.44,2.2401289]
[1730168841712,42.65612518,181.53,181.47,34.11072518]
[1730168841915,34.11072518,181.52,181.46,34.11072518]
[1730168842115,34.11072518,181.49,181.43,54.11072518]
[1730168842416,8.6454,181.53,181.44,36.35116128]
[1730168842417,34.11072518,181.5,181.44,36.35116128]
[1730168842602,34.11072518,181.5,181.45,2.2404361]
[1730168843490,34.11072518,181.49,181.45,2.2404361]
[1730168843688,34.11072518,181.52,181.46,34.11072518]
[1730168843906,34.11072518,181.52,181.44,2.2404361]
[1730168843907,8.5454,181.53,181.48,34.11072518]
[1730168844114,8.5454,181.53,181.49,34.11072518]
[1730168844288,42.65612518,181.53,181.47,34.11072518]
[1730168844490,8.5454,181.53,181.48,36.35058084]
[1730168844806,8.5454,181.53,181.48,34.11072518]
[1730168844992,8.5454,181.53,181.49,2.23971843]
[1730168845191,8.5454,181.53,181.48,34.11072518]
[1730168845386,8.5454,181.53,181.45,20.0]
[1730168845387,34.11072518,181.52,181.47,20.0]
[1730168845608,8.5454,181.53,181.48,34.11072518]
[1730168846023,8.5454,181.53,181.49,34.11072518]
[1730168846186,42.65612518,181.53,181.47,34.11072518]
[1730168846390,42.65612518,181.53,181.48,2.23551431]
[1730168846599,8.5454,181.53,181.48,36.34623949]
[1730168846798,8.5454,181.53,181.49,2.23551431]
[1730168847403,42.65612518,181.53,181.49,2.23551431]
[1730168847615,42.65612518,181.53,181.48,2.23551431]
[1730168847912,21.1833,181.54,181.49,34.11072518]
[1730168848212,55.29402518,181.54,181.48,20.0]
[1730168848421,21.1833,181.54,181.49,34.11072518]
[1730168848927,21.1833,181.54,181.5,2.23720467]
[1730168849404,34.11072518,181.55,181.49,34.11072518]
[1730168849600,43.30362518,181.57,181.51,34.11072518]
[1730168850399,9.0929,181.57,181.52,34.11072518]
[1730168851023,9.0929,181.57,181.45,20.0]
[1730168851024,9.0929,181.57,181.54,34.11072518]
[1730168851222,34.11072518,181.67,181.57,20.0]
[1730168851528,42.58632518,181.68,181.62,34.11072518]
[1730168851698,8.4756,181.68,181.63,34.11072518]
[1730168852012,8.4756,181.68,181.67,34.11072518]
[1730168852223,8.4756,181.73,181.67,34.11072518]
[1730168852518,34.11072518,181.68,181.63,5.80257721]
[1730168852713,34.11072518,181.67,181.61,34.11072518]
[1730168852911,34.11072518,181.69,181.63,34.11072518]
[1730168853105,34.11072518,181.7,181.64,34.11072518]
[1730168854013,0.1,181.72,181.67,34.11072518]
[1730168854214,34.21072518,181.72,181.66,34.11072518]
[1730168854520,34.11072518,181.71,181.65,34.11072518]
[1730168854894,8.6756,181.73,181.63,54.11072518]
[1730168855108,34.11072518,181.69,181.63,54.11072518]
[1730168855306,34.11072518,181.69,181.63,34.11072518]
[1730168855503,34.11072518,181.68,181.62,34.11072518]
[1730168855714,34.11072518,181.69,181.63,34.11072518]
[1730168856290,34.11072518,181.66,181.61,20.0]
[1730168856618,34.11072518,181.7,181.64,34.11072518]
[1730168856801,34.11072518,181.71,181.66,34.11072518]
[1730168857002,34.11072518,181.7,181.65,20.0]
[1730168857210,34.11072518,181.7,181.61,34.11072518]
[1730168857211,34.11072518,181.67,181.61,34.11072518]
[1730168857900,34.11072518,181.69,181.63,34.11072518]
[1730168858100,34.11072518,181.68,181.62,34.11072518]
[1730168858933,34.11072518,181.66,181.59,20.0]
[1730168859118,34.11072518,181.68,181.62,34.11072518]
[1730168859620,34.11072518,181.67,181.59,20.0]
[1730168859832,23.776884,181.71,181.63,34.11072518]
[1730168860008,34.11072518,181.7,181.64,34.11072518]
[1730168860316,34.11072518,181.69,181.63,34.11072518]
[1730168860707,34.11072518,181.67,181.62,34.11072518]
[1730168861021,34.11072518,181.68,181.62,34.11072518]
[1730168861406,1.6,181.72,181.59,20.0]
[1730168861407,34.11072518,181.67,181.61,34.11072518]
[1730168861609,0.1,181.69,181.61,34.11072518]
[1730168862025,34.11072518,181.66,181.6,34.11072518]
[1730168862728,34.11072518,181.67,181.61,34.11072518]
[1730168863022,34.11072518,181.66,181.61,34.11072518]
[1730168864225,34.11072518,181.66,181.6,34.11072518]
[1730168864421,34.11072518,181.66,181.61,20.0]
[1730168864928,34.11072518,181.64,181.6,20.0]
[1730168865215,34.11072518,181.65,181.6,20.0]
[1730168865421,34.11072518,181.66,181.6,54.11072518]
[1730168865811,34.11072518,181.65,181.6,54.11072518]
[1730168866014,34.11072518,181.67,181.62,34.11072518]
[1730168866418,1.5,181.72,181.66,34.11072518]
[1730168866621,1.5,181.72,181.68,34.11072518]
[1730168866930,35.61072518,181.72,181.68,20.0]
[1730168867109,35.61072518,181.72,181.67,34.11072518]
[1730168867710,1.5,181.72,181.67,34.11072518]
[1730168867919,1.5,181.72,181.68,34.11072518]
[1730168868305,1.5,181.72,181.69,34.11072518]
[1730168868615,1.5,181.72,181.7,41.27272187]
[1730168868815,1.5,181.72,181.71,41.27272187]
[1730168869120,1.5,181.72,181.71,20.0]
[1730168869436,22.77272187,181.72,181.66,21.27272187]
[1730168869721,21.27272187,181.7,181.64,27.07529908]
[1730168869926,21.27272187,181.69,181.64,5.80257721]
[1730168870221,21.27272187,181.7,181.64,27.07529908]
[1730168870422,34.05437653,181.7,181.64,39.85695374]
[1730168870724,34.05437653,181.68,181.62,34.05437653]
[1730168870927,34.05437653,181.69,181.63,34.05437653]
[1730168871319,34.15437653,181.7,181.63,34.05437653]
[1730168871522,34.15437653,181.7,181.64,34.05437653]
[1730168871827,23.776884,181.71,181.62,34.05437653]
[1730168871828,34.05437653,181.68,181.62,34.05437653]
[1730168872028,0.1,181.71,181.59,5.80257721]
[1730168872029,34.05437653,181.69,181.64,20.0]
[1730168872730,0.1,181.71,181.64,20.0]
[1730168872731,34.05437653,181.7,181.64,34.05437653]
[1730168872909,34.05437653,181.69,181.63,34.05437653]
[1730168873103,34.05437653,181.7,181.64,54.05437653]
[1730168873309,34.05437653,181.68,181.64,20.0]
[1730168874226,34.05437653,181.66,181.6,34.05437653]
[1730168874523,34.05437653,181.62,181.59,5.80257721]
[1730168874731,34.05437653,181.62,181.56,34.05437653]
[1730168874912,34.05437653,181.61,181.55,5.80257721]
[1730168875112,34.05437653,181.62,181.56,34.05437653]
[1730168875423,34.05437653,181.6,181.55,5.80257721]
[1730168875633,34.05437653,181.58,181.55,2.21963961]